fUSD/lending_fUSD_20260121
["ID","MTS","AMOUNT","RATE_DAILY","PERIOD"]
[402900835,1768963846526,-18029.63,0.00018533,2]
[402900836,1768963846536,-1953.5435294,0.00018533,2]
[402900837,1768963846549,-18632.9764706,0.00018533,2]
[402900838,1768963846558,-150.00840744,0.00018979,7]
[402900839,1768963846567,-508.0,0.000196,2]
[402900840,1768963846576,-500.0,0.00019687,2]
[402900841,1768963846585,-500.0,0.00019687,2]
[402900842,1768963846594,-204.47202902,0.00019687,2]
[402900843,1768963846603,-150.0,0.00019687,2]
[402900844,1768963846612,-500.0,0.00019687,2]
[402900845,1768963846621,-150.0,0.00019687,2]
[402900846,1768963846630,-150.0,0.00019687,2]
[402900847,1768963846640,-150.0,0.00019687,2]
[402900848,1768963846649,-500.0,0.00019687,2]
[402900849,1768963846658,-150.0,0.00019687,2]
[402900850,1768963846667,-150.0,0.00019687,2]
[402900851,1768963846677,-150.0,0.00019687,2]
[402900852,1768963846687,-150.0,0.00019687,2]
[402900853,1768963846696,-150.0,0.00019687,2]
[402900854,1768963846705,-150.0,0.00019687,2]
[402900855,1768963846714,-500.0,0.00019742,2]
[402900856,1768963846723,-642.33986888,0.00019742,2]
[402900857,1768963846732,-150.0,0.00019742,2]
[402900858,1768963846741,-500.0,0.00019742,2]
[402900859,1768963846750,-150.0,0.00019742,2]
[402900860,1768963846759,-150.0,0.00019742,2]
[402900861,1768963846768,-500.0,0.00019742,2]
[402900862,1768963846776,-150.0,0.00019742,2]
[402900863,1768963846785,-150.0,0.00019742,2]
[402900864,1768963846794,-150.0,0.00019742,2]
[402900865,1768963846803,-150.0,0.00019742,2]
[402900866,1768963846812,-150.0,0.00019742,2]
[402900867,1768963846821,-500.0,0.00019797,2]
[402900868,1768963846831,-200.0,0.00019797,2]
[402900869,1768963846839,-500.0,0.00019797,2]
[402900870,1768963846848,-160.66639761,0.00019797,2]
[402900871,1768963846857,-150.0,0.00019797,2]
[402900872,1768963846866,-500.0,0.00019797,2]
[402900873,1768963846875,-150.0,0.00019797,2]
[402900874,1768963846883,-189.89164013,0.00019797,2]
[402900875,1768963846892,-200.0,0.00019797,2]
[402900876,1768963846901,-150.0,0.00019797,2]
[402900877,1768963846910,-500.0,0.00019851,2]
[402900878,1768963846919,-608.0,0.00019851,2]
[402900879,1768963846928,-150.0,0.00019851,2]
[402900880,1768963846937,-500.0,0.00019851,2]
[402900881,1768963846945,-150.0,0.00019851,2]
[402900882,1768963846954,-150.0,0.00019851,2]
[402900883,1768963846963,-339.97005786,0.00019906,2]
[402900884,1768963846972,-218.75385845,0.00019906,2]
[402900885,1768963846981,-314.98616488,0.00019906,2]
[402900886,1768963846990,-254.0,0.00019906,2]
[402900887,1768963846999,-150.0,0.00019906,2]
[402900888,1768963847008,-213.79054865,0.00019961,2]
[402900889,1768963847017,-200.0,0.00020062,2]
[402900890,1768963847026,-230.5,0.00020345,2]
[402900891,1768963847035,-16912.33865279,0.00020667,2]
[402900892,1768963847044,-230.5,0.00021108,2]
[402900893,1768963847053,-150.00840744,0.00021247,19]
[402900894,1768963847062,-230.5,0.00021871,2]
[402900895,1768963847072,-150.00840744,0.00022381,24]
[402900896,1768963847081,-230.5,0.00022634,2]
[402900897,1768963847090,-230.5,0.00023397,2]
[402900898,1768963847099,-16912.33865279,0.00023436,2]
[402900899,1768963847108,-150.00840744,0.00023515,30]
[402900900,1768963847117,-1000.0,0.0002391,2]
[402900901,1768963847127,-508.0,0.00024246,6]
[402900902,1768963847137,-150.00840744,0.00024649,34]
[402900903,1768963847148,-150.0,0.00024998,2]
[402900904,1768963847158,-150.0,0.00025053,2]
[402900905,1768963847166,-150.0,0.00025108,2]
[402900906,1768963847175,-150.0,0.00025162,2]
[402900907,1768963847185,-150.0,0.00025217,2]
[402900908,1768963847194,-839.5634943,0.00025272,2]
[402900909,1768963847203,-4317.3454195,0.00025272,2]
[402900910,1768963847218,-2729.9383987,0.00025272,2]
[402900911,1768963847230,-500.0,0.00025288,2]
[402900912,1768963847240,-174.58,0.00025772,2]
[402900913,1768963847250,-150.00840744,0.00025783,37]
[402900914,1768963847260,-405.51,0.00025869,2]
[402900915,1768963847270,-16912.33865279,0.00026204,2]
[402900916,1768963847280,-154.41377909,0.00026213,2]
[402900917,1768963847290,-187.78006526,0.00026313,2]
[402900918,1768963847301,-2999.794556,0.00026313,2]
[402900923,1768964566660,166.66,0.00015854,2]
[402900924,1768964566840,166.66,0.00016188,2]
[402900947,1768964894489,2986.345401,0.00016398,2]
[402900953,1768965032368,-445.10708926,0.0001648,2]
[402900954,1768965032378,-250.0,0.0001648,2]
[402900955,1768965032387,-195.0,0.0001648,2]
[402900956,1768965032397,-166.66,0.00016522,2]
[402900957,1768965032407,-182.1657582,0.00016609,2]
[402900958,1768965032417,-12.8342418,0.00016609,2]
[402900959,1768965032426,-1200.0,0.00016624,2]
[402900960,1768965032435,-618.1703736,0.00016625,2]
[402900961,1768965032449,-1784.499398,0.00016625,2]
[402900962,1768965032483,-4396.9602284,0.00016625,2]
[402900963,1768965032492,-162.85,0.00016639,2]
[402900964,1768965032501,-168.0,0.00016682,2]
[402900965,1768965032511,-162.85,0.00016683,2]
[402900966,1768965032520,-300.0,0.00016698,2]
[402900967,1768965032529,-2500.0,0.00016699,2]
[402900968,1768965032538,-248.0,0.00016724,2]
[402900969,1768965032547,-10155.55164777,0.00016725,2]
[402900970,1768965032556,-162.85,0.00016727,2]
[402900971,1768965032565,-162.85,0.0001677,2]
[402900972,1768965032575,-500.0,0.00016789,2]
[402900973,1768965032585,-500.0,0.00016789,2]
[402900974,1768965032594,-500.0,0.00016789,2]
[402900975,1768965032611,-500.0,0.00016789,2]
[402900976,1768965032621,-151.0,0.00016789,2]
[402900977,1768965032632,-151.0,0.00016789,2]
[402900978,1768965032641,-151.0,0.00016789,2]
[402900979,1768965032651,-151.0,0.00016789,2]
[402900980,1768965032660,-151.0,0.00016789,2]
[402900981,1768965032671,-151.0,0.00016789,2]
[402900982,1768965032680,-151.0,0.00016789,2]
[402900983,1768965032689,-151.0,0.00016789,2]
[402900984,1768965032699,-151.0,0.00016789,2]
[402900985,1768965032708,-151.0,0.00016789,2]
[402900986,1768965032717,-151.0,0.00016789,2]
[402900987,1768965032726,-151.0,0.00016789,2]
[402900988,1768965032736,-151.0,0.00016789,2]
[402900989,1768965032745,-151.0,0.00016789,2]
[402900990,1768965032754,-151.0,0.00016789,2]
[402900991,1768965032764,-151.0,0.00016789,2]
[402900992,1768965032773,-161.3676921,0.00016789,2]
[402900994,1768965032783,-517.62519295,0.00016798,2]
[402900996,1768965032792,-622.73174709,0.00016798,2]
[402900998,1768965032801,-500.0,0.00016798,2]
[402901000,1768965032810,-500.0,0.00016798,2]
[402901002,1768965032819,-422.40902551,0.00016798,2]
[402901004,1768965032829,-500.0,0.00016798,2]
[402901007,1768965032838,-162.85,0.00016814,2]
[402901009,1768965032848,-150.00075228,0.00016825,2]
[402901011,1768965032857,-166.66,0.00016856,2]
[402901013,1768965032866,-162.85,0.00016858,2]
[402901015,1768965032875,-162.85,0.00016902,2]
[402901017,1768965032883,-162.85,0.00016946,2]
[402901019,1768965032892,-162.85,0.00016989,2]
[402901021,1768965032901,-162.85,0.00017033,2]
[402901023,1768965032910,-200.78433745,0.00017073,2]
[402901025,1768965032918,-162.85,0.00017077,2]
[402901027,1768965032927,-162.85,0.00017121,2]
[402901029,1768965032936,-162.85,0.00017164,2]
[402901031,1768965032946,-166.66,0.0001719,2]
[402901033,1768965032954,-162.85,0.00017208,2]
[402901035,1768965032963,-162.85,0.00017252,2]
[402901037,1768965032972,-162.85,0.00017296,2]
[402901039,1768965032981,-162.85,0.0001734,2]
[402901041,1768965032990,-500.15189466,0.00017373,2]
[402901043,1768965032999,-500.0,0.00017373,2]
[402901044,1768965033008,-500.29132853,0.00017373,2]
[402901046,1768965033017,-500.13630918,0.00017373,2]
[402901047,1768965033026,-500.75033377,0.00017373,2]
[402901048,1768965033035,-500.0,0.00017373,2]
[402901049,1768965033044,-502.38199886,0.00017373,2]
[402901050,1768965033054,-500.0,0.00017373,2]
[402901051,1768965033063,-300.21596322,0.00017373,2]
[402901052,1768965033073,-642.91001441,0.00017373,2]
[402901053,1768965033082,-500.17425444,0.00017373,2]
[402901054,1768965033091,-500.0,0.00017373,2]
[402901055,1768965033101,-500.99033758,0.00017373,2]
[402901056,1768965033110,-500.73381826,0.00017373,2]
[402901057,1768965033119,-250.0,0.00017373,2]
[402901058,1768965033128,-159.96427776,0.00017373,2]
[402901059,1768965033140,-500.0,0.00017373,2]
[402901060,1768965033150,-500.36416289,0.00017373,2]
[402901061,1768965033159,-501.89517318,0.00017373,2]
[402901062,1768965033168,-162.85,0.00017383,2]
[402901063,1768965033177,-162.85,0.00017427,2]
[402901064,1768965033186,-162.85,0.00017471,2]
[402901065,1768965033196,-166.66,0.00017523,2]
[402901066,1768965033206,-161.0,0.000178,2]
[402901067,1768965033215,-201.31716021,0.00017921,2]
[402901068,1768965033224,-515.89796924,0.00017999,2]
[402901069,1768965033233,-162.41,0.00018,2]
[402901070,1768965033243,-300.0,0.00018083,2]
[402901071,1768965033251,-250.0,0.00018083,2]
[402901072,1768965033551,-195.0,0.00018083,2]
[402901073,1768965033576,-150.00075228,0.00018083,2]
[402901074,1768965033586,-300.0,0.00018128,2]
[402901075,1768965033595,-297.5,0.00018206,2]
[402901076,1768965033604,-205.0,0.00018255,2]
[402901077,1768965033613,-489.99,0.00018433,2]
[402901078,1768965033623,-510.66982026,0.00018433,2]
[402901079,1768965033636,-500.0,0.00018433,2]
[402901080,1768965033645,-33234.7286,0.00018433,2]
[402901081,1768965033654,-1000.0,0.00018433,2]
[402901082,1768965033662,-365.76,0.00019178,30]
[402901083,1768965033673,-150.00075228,0.00019341,9]
[402901084,1768965033683,-507.0,0.000196,2]
[402901085,1768965033693,-10155.55164773,0.00019624,2]
[402901086,1768965033705,-5000.26149171,0.0002,2]
[402901087,1768965033714,-502.0,0.0002011,2]
[402901088,1768965033724,-297.5,0.00020458,2]
[402901089,1768965033733,-150.00075228,0.00020599,15]
[402901090,1768965033742,-150.00075228,0.00021857,22]
[402901091,1768965033752,-10155.55164773,0.00022523,2]
[402901092,1768965033761,-489.71,0.00022634,2]
[402901093,1768965033770,-297.5,0.0002271,2]
[402901094,1768965033779,-150.00075228,0.00023115,28]
[402901095,1768965033788,-8995.6107844,0.00023521,2]
[402901096,1768965033797,-2518.6904829,0.00023521,2]
[402901097,1768965033806,-10175.0812768,0.00023521,2]
[402901098,1768965033815,-6433.8945319,0.00023521,2]
[402901099,1768965033824,-161.0,0.000236,7]
[402901100,1768965033833,-507.0,0.00023914,6]
[402901101,1768965033843,-365.76,0.00024225,30]
[402901102,1768965033852,-150.00075228,0.00024373,33]
[402901103,1768965033861,-1000.0,0.00024658,2]
[402901104,1768965033871,-1000.0,0.000248,2]
[402901105,1768965033880,-7298.57493021,0.000249,3]
[402901106,1768965033889,-150.0,0.00024943,2]
[402901107,1768965033898,-181.77524195,0.00024943,2]
[402901108,1768965033907,-150.0,0.00024943,2]
[402901109,1768965033916,-500.0,0.00024943,2]
[402901110,1768965033925,-152.96751173,0.00024943,2]
[402901111,1768965033935,-150.0,0.00024943,2]
[402901112,1768965033944,-197.22335931,0.00024943,2]
[402901113,1768965033955,-500.0,0.00024943,2]
[402901114,1768965033964,-297.5,0.00024961,2]
[402901115,1768965033973,-150.0,0.00024998,2]
[402901116,1768965033981,-150.0,0.00024998,2]
[402901117,1768965033990,-500.0,0.00024998,2]
[402901118,1768965034000,-150.0,0.00024998,2]
[402901119,1768965034010,-500.0,0.00024998,2]
[402901120,1768965034019,-200.0,0.00025053,2]
[402901121,1768965034028,-150.0,0.00025053,2]
[402901122,1768965034037,-500.0,0.00025053,2]
[402901123,1768965034046,-150.0,0.00025053,2]
[402901124,1768965034055,-500.0,0.00025053,2]
[402901125,1768965034065,-150.0,0.00025107,2]
[402901126,1768965034074,-500.0,0.00025107,2]
[402901127,1768965034083,-150.0,0.00025107,2]
[402901128,1768965034092,-500.0,0.00025107,2]
[402901129,1768965034101,-150.0,0.00025162,2]
[402901130,1768965034110,-500.0,0.00025162,2]
[402901131,1768965034119,-150.0,0.00025162,2]
[402901132,1768965034129,-517.65771857,0.00025162,2]
[402901133,1768965034138,-250.0,0.00025217,2]
[402901134,1768965034149,-500.0,0.00025217,2]
[402901135,1768965034158,-250.0,0.00025217,2]
[402901136,1768965034167,-500.0,0.00025272,2]
[402901137,1768965034177,-4865.71662014,0.00025413,3]
[402901138,1768965034186,-10155.55164773,0.00025423,2]
[402901139,1768965034195,-150.00075228,0.0002563,37]
[402901140,1768965034204,-161.0,0.000257,10]
[402901141,1768965034213,-152.84284681,0.00025765,2]
[402901142,1768965034222,-500.0,0.00025765,2]
[402901143,1768965034231,-150.0,0.00025765,2]
[402901144,1768965034241,-150.0,0.00025765,2]
[402901145,1768965034250,-500.0,0.00025765,2]
[402901146,1768965034259,-500.0,0.0002582,2]
[402901147,1768965034269,-155.78864891,0.0002582,2]
[402901148,1768965034278,-500.0,0.0002582,2]
[402901149,1768965034287,-500.0,0.00025875,2]
[402901150,1768965034296,-500.0,0.00025875,2]
[402901151,1768965034306,-500.0,0.00026023,2]
[402901152,1768965034315,-150.0,0.00026023,2]
[402901153,1768965034325,-150.0,0.00026023,2]
[402901154,1768965034336,-150.0,0.00026023,2]
[402901155,1768965034347,-2432.85831007,0.00026068,3]
[402901156,1768965034356,-500.0,0.00026078,2]
[402901157,1768965034366,-150.0,0.00026078,2]
[402901158,1768965034375,-150.0,0.00026078,2]
[402901159,1768965034384,-297.47487293,0.00026078,2]
[402901160,1768965034394,-500.0,0.00026133,2]
[402901161,1768965034403,-279.63385986,0.00026133,2]
[402901162,1768965034412,-268.07099453,0.00026133,2]
[402901163,1768965034421,-500.0,0.00026187,2]
[402901164,1768965034430,-162.0,0.000263,15]
[402901165,1768965034439,-217.08682436,0.00026615,2]
[402901166,1768965034449,-7298.57493021,0.00026615,3]
[402901167,1768965034459,-174.58,0.00026835,2]
[402901168,1768965034468,-150.00075228,0.00026888,41]
[402901169,1768965034477,-1000.0,0.00026899,2]
[402901170,1768965034486,-1435.5959173,0.00027126,2]
[402901171,1768965034495,-297.5,0.00027213,2]
[402901172,1768965034504,-2270.3675148,0.00027387,2]
[402901173,1768965034513,-300.0,0.00027397,2]
[402901174,1768965034522,-500.0,0.00027397,20]
[402901175,1768965034531,-243.898,0.00027671,17]
[402901176,1768965034542,-978.52,0.00027671,17]
[402901177,1768965034552,-2432.85831007,0.00027889,3]
[402901178,1768965034561,-174.58,0.00027899,2]
[402901179,1768965034570,-2000.0,0.000279,2]
[402901180,1768965034581,-320.3247469,0.0002793,2]
[402901181,1768965034590,-5500.0,0.00028,120]
[402901182,1768965034599,-150.00075228,0.00028146,45]
[402901183,1768965034607,-2432.85831007,0.00028186,3]
[402901184,1768965034617,-1203.0,0.00028196,2]
[402901185,1768965034628,-915.0,0.00028196,2]
[402901186,1768965034639,-2440.0,0.00028217,2]
[402901187,1768965034648,-6564.0,0.00028217,2]
[402901188,1768965034658,-507.0,0.00028229,10]
[402901189,1768965034667,-506.5874671,0.0002825,2]
[402901190,1768965034677,-2432.85831007,0.00028312,3]
[402901191,1768965034686,-10155.55164773,0.00028322,2]
[402901192,1768965034694,-2007.1920749,0.00028398,2]
[402901193,1768965034705,-17739.541008,0.0002848,2]
[402901194,1768965034714,-4865.71662014,0.0002857,3]
[402901195,1768965034724,-250.0,0.0002858,2]
[402901196,1768965034734,-2567.0,0.0002858,2]
[402901197,1768965034743,-250.0,0.0002858,2]
[402901198,1768965034752,-500.0,0.0002858,2]
[402901199,1768965034762,-500.0,0.0002858,2]
[402901200,1768965034771,-500.0,0.0002858,2]
[402901201,1768965034780,-500.0,0.0002858,2]
[402901202,1768965034789,-500.0,0.0002858,2]
[402901203,1768965034799,-500.0,0.0002858,2]
[402901204,1768965034808,-500.0,0.0002858,2]
[402901205,1768965034818,-500.0,0.0002858,2]
[402901206,1768965034827,-250.0,0.0002858,2]
[402901207,1768965034837,-500.0,0.0002858,2]
[402901208,1768965034846,-500.0,0.0002858,2]
[402901209,1768965034856,-500.0,0.0002858,2]
[402901210,1768965034867,-500.0,0.0002858,2]
[402901211,1768965034876,-5565.96100311,0.0002858,2]
[402901212,1768965034887,-500.0,0.0002858,2]
[402901213,1768965034896,-500.0,0.0002858,2]
[402901214,1768965034906,-500.0,0.0002858,2]
[402901215,1768965034915,-500.0,0.0002858,2]
[402901216,1768965034925,-500.0,0.0002858,2]
[402901217,1768965034934,-500.0,0.0002858,2]
[402901218,1768965034943,-250.0,0.0002858,2]
[402901219,1768965034953,-500.0,0.0002858,2]
[402901220,1768965034963,-514.84070869,0.0002858,2]
[402901221,1768965034972,-500.0,0.0002858,2]
[402901222,1768965034981,-500.0,0.0002858,2]
[402901223,1768965034990,-500.0,0.0002858,2]
[402901224,1768965034999,-500.0,0.0002858,2]
[402901225,1768965035010,-500.0,0.0002858,2]
[402901226,1768965035019,-500.0,0.0002858,2]
[402901227,1768965035028,-500.0,0.0002858,2]
[402901228,1768965035038,-500.0,0.0002858,2]
[402901229,1768965035048,-500.0,0.0002858,2]
[402901230,1768965035057,-500.0,0.0002858,2]
[402901231,1768965035067,-500.0,0.0002858,2]
[402901232,1768965035076,-500.0,0.0002858,2]
[402901233,1768965035085,-500.0,0.0002858,2]
[402901234,1768965035094,-500.0,0.0002858,2]
[402901235,1768965035103,-500.0,0.0002858,2]
[402901236,1768965035112,-500.0,0.0002858,2]
[402901237,1768965035122,-500.0,0.0002858,2]
[402901238,1768965035131,-500.0,0.0002858,2]
[402901239,1768965035140,-500.0,0.0002858,2]
[402901240,1768965035149,-500.0,0.0002858,2]
[402901241,1768965035158,-500.0,0.0002858,2]
[402901242,1768965035167,-500.0,0.0002858,2]
[402901243,1768965035176,-500.0,0.0002858,2]
[402901244,1768965035185,-500.0,0.0002858,2]
[402901245,1768965035194,-500.0,0.0002858,2]
[402901246,1768965035202,-500.0,0.0002858,2]
[402901247,1768965035210,-300.0,0.000289,10]
[402901248,1768965035218,-174.58,0.00028962,2]
[402901249,1768965035226,-14597.1498604,0.000292,3]
[402901250,1768965035234,-96917.03137091,0.0002921,2]
[402901251,1768965035242,-365.76,0.00029272,30]
[402901252,1768965035251,-150.00075228,0.00029404,49]
[402901253,1768965035259,-297.5,0.00029465,2]
[402901254,1768965035267,-447.8650891,0.00029486,2]
[402901255,1768965035275,-1000.0,0.000295,10]
[402901256,1768965035283,-9731.43324028,0.00029719,3]
[402901257,1768965035292,-161.0,0.000298,30]
[402901258,1768965035301,-1000.0,0.00029888,2]
[402901259,1768965035310,-164.40110729,0.00029999,2]
[402901260,1768965035319,-174.58,0.00030026,2]
[402901261,1768965035327,-16017.08486174,0.00030073,2]
[402901262,1768965035340,-1722.45614625,0.00030073,2]
[402901263,1768965035350,-7298.57493021,0.0003012,3]
[402901264,1768965035359,-150.0,0.0003012,2]
[402901265,1768965035368,-31332.82837274,0.0003013,120]
[402901266,1768965035380,-273.84430536,0.0003013,120]
[402901267,1768965035390,-925.0,0.0003013,120]
[402901268,1768965035525,-5909.87517957,0.0003013,120]
[402901269,1768965035565,-570.40680907,0.0003013,120]
[402901270,1768965035576,-269.84867698,0.0003013,120]
[402901276,1768965038396,-162.92999704,0.00016788,2]
[402901277,1768965038406,-330.24330662,0.00028217,2]
[402901278,1768965038416,-583.72879,0.00028217,2]
[402901279,1768965038427,-847.0,0.00028217,2]
[402901280,1768965038441,-595.99056841,0.00028217,2]
[402901281,1768965038451,-2470.03733497,0.00028217,2]
[402901282,1768965038461,-19286.13498723,0.0003013,120]
[402901283,1768965038469,-161.0,0.0003013,120]
[402901284,1768965038478,-2432.85831007,0.00030658,3]
[402901285,1768965038487,-150.00075228,0.00030662,53]
[402901286,1768965038496,-2793.4185661,0.00030668,5]
[402901287,1768965038592,-860.85068214,0.00030668,5]
[402901288,1768965038603,-6955.0000005,0.00030668,5]
[402901289,1768965038615,-477.73075126,0.00030668,5]
[402901290,1768965038624,-800.585778,0.00030835,3]
[402901309,1768965046441,-150.0,0.00024943,2]
[402901310,1768965046451,-566.0,0.00028217,2]
[402901311,1768965046460,-900.15380106,0.00028578,2]
[402901312,1768965046616,-1876.6483457,0.00028578,2]
[402901313,1768965046626,-158.92590919,0.0003012,2]
[402901314,1768965046638,-253.62611268,0.0003012,2]
[402901315,1768965046649,-158.92590919,0.0003012,2]
[402901316,1768965046659,-253.62611268,0.0003012,2]
[402901317,1768965046668,-1632.27253207,0.00030835,3]
[402901318,1768965046679,-1904.88061987,0.00030845,2]
[402901319,1768965046771,-1569.11938013,0.00030845,2]
[402901320,1768965046780,-108.67190247,0.00030845,2]
[402901321,1768965380604,500.0,0.000226,120]
[402901322,1768965381877,360.09992776,0.000226,120]
[402901323,1768965393778,496.0,0.000226,120]
[402901329,1768966194538,7974.0,0.000226,120]
[402901359,1768966231774,-344.17171453,0.00016574,2]
[402901361,1768966231785,-614.3744897,0.00016574,2]
[402901362,1768966231800,-894.80788013,0.00016574,2]
[402901363,1768966231812,-1573.12997765,0.00016574,2]
[402901364,1768966231823,-7712.53438517,0.00016574,2]
[402901366,1768966231965,-911.69251022,0.00016574,2]
[402901367,1768966231977,-2272.00685647,0.00016574,2]
[402901368,1768966232024,-1737.21827083,0.00016574,2]
[402901369,1768966232035,-152.13538667,0.00016599,2]
[402901370,1768966232044,-728.97314405,0.00016599,2]
[402901371,1768966232055,-346.84803172,0.00016599,2]
[402901372,1768966232066,-661.42405583,0.00016599,2]
[402901373,1768966232079,-556.64674786,0.00016599,2]
[402901374,1768966232111,-1060.77904205,0.00016599,2]
[402901375,1768966232122,-1000.76715722,0.00016599,2]
[402901376,1768966232155,-1004.51234508,0.00016599,2]
[402901391,1768966238054,-636.47974094,0.00016599,2]
[402901392,1768966238064,-500.0,0.00016624,2]
[402901393,1768966238074,-500.0,0.00016624,2]
[402901394,1768966238084,-500.0,0.00016624,2]
[402901395,1768966238092,-500.0,0.00016624,2]
[402901396,1768966238101,-362.17393187,0.00016624,2]
[402901397,1768966238427,-500.0,0.00016624,2]
[402901398,1768966238441,-500.0,0.00016624,2]
[402901399,1768966238451,-500.0,0.00016624,2]
[402901400,1768966238461,-500.0,0.00016624,2]
[402901401,1768966238471,-500.0,0.00016624,2]
[402901402,1768966238480,-500.0,0.00016624,2]
[402901403,1768966238489,-1209.65561051,0.00016624,5]
[402901404,1768966238498,-500.0,0.00016624,2]
[402901405,1768966238507,-1752.33124377,0.00016624,2]
[402901406,1768966238517,-505.56624435,0.00016624,2]
[402901407,1768966238526,-500.0,0.00016624,2]
[402901408,1768966238535,-500.0,0.00016624,2]
[402901409,1768966238544,-500.0,0.00016624,2]
[402901410,1768966238553,-500.0,0.00016624,2]
[402901411,1768966238562,-500.0,0.00016624,2]
[402901412,1768966238571,-1000.0,0.00016674,2]
[402901413,1768966238580,-24838.9578,0.00016699,2]
[402901414,1768966238590,-1000.0,0.00016699,2]
[402901415,1768966238599,-16059.93608464,0.00016721,2]
[402901416,1768966238608,-5996.43026468,0.00016744,2]
[402901417,1768966238618,-500.0,0.00016798,2]
[402901418,1768966238627,-500.0,0.00016798,2]
[402901419,1768966238636,-150.00066758,0.00016825,2]
[402901420,1768966238645,-16059.93608464,0.00016869,2]
[402901421,1768966238654,-5996.43026468,0.00016888,2]
[402901422,1768966238663,-250.0,0.00017,2]
[402901423,1768966238672,-15129.03712047,0.00017,2]
[402901424,1768966238682,-16059.93608464,0.00017016,2]
[402901425,1768966238691,-5996.43026468,0.00017033,2]
[402901426,1768966238700,-16059.93608464,0.00017163,2]
[402901427,1768966238709,-5996.43026468,0.00017177,2]
[402901428,1768966238718,-16059.93608464,0.00017311,2]
[402901429,1768966238727,-5996.43026468,0.00017322,2]
[402901430,1768966238736,-151.0,0.00017336,2]
[402901431,1768966238746,-500.79549494,0.00017373,2]
[402901432,1768966238756,-500.12560695,0.00017373,2]
[402901433,1768966238765,-242.00387817,0.00017373,2]
[402901434,1768966238774,-300.0,0.00017373,2]
[402901435,1768966238783,-500.0,0.00017373,2]
[402901436,1768966238792,-500.0,0.00017373,2]
[402901437,1768966238802,-322.92976016,0.00017373,2]
[402901438,1768966238811,-500.0,0.00017373,2]
[402901439,1768966238821,-555.33179761,0.00017373,2]
[402901440,1768966238830,-586.66357325,0.00017373,2]
[402901441,1768966238840,-214.000105,0.00017394,2]
[402901442,1768966238849,-500.0,0.000174,6]
[402901443,1768966238859,-16059.93608464,0.00017458,2]
[402901444,1768966238868,-5996.43026468,0.00017466,2]
[402901445,1768966238878,-1100.0,0.000175,6]
[402901446,1768966238887,-1700.0,0.000176,6]
[402901447,1768966238896,-16059.93608464,0.00017605,2]
[402901448,1768966238906,-5996.43026468,0.00017611,2]
[402901449,1768966238915,-2300.0,0.000177,6]
[402901450,1768966238926,-16059.93608464,0.00017753,2]
[402901451,1768966238936,-5996.43026468,0.00017755,2]
[402901452,1768966238946,-2900.0,0.000178,6]
[402901453,1768966238955,-11264.5601137,0.000179,2]
[402901454,1768966238964,-500.0,0.000179,6]
[402901455,1768966238974,-12329.04714575,0.000179,2]
[402901456,1768966238983,-5996.43026468,0.000179,2]
[402901457,1768966238993,-174.38650115,0.000179,2]
[402901458,1768966239007,-2203.2446792,0.000179,2]
[402901459,1768966239017,-2683.23467974,0.000179,2]
[402901460,1768966239027,-158.60706814,0.000179,2]
[402901461,1768966239036,-3179.15699453,0.000179,2]
[402901462,1768966239046,-1495.17784509,0.000179,2]
[402901463,1768966239056,-16059.93608464,0.000179,2]
[402901464,1768966239066,-501.73019451,0.00017921,2]
[402901465,1768966239076,-1000.0,0.00017921,2]